Cogmind - Beta 11.1 @@@ ROGUE MODE // 2022.04.26 @ 17:32:07 Player: QQQQ Result: Self-destructed Performance ------------- Evolutions (7) 3500 Regions Visited (21) 4200 Robots Destroyed (38) 190 Value Destroyed (703) 703 Prototype IDs (32) 640 Alien Tech Used (0) 0 Bonus (1582) 1582 TOTAL SCORE: 10815 Bonus ------- High Alert Combat Kills 56 Follower Combat Kills 226 Aligned with FarCom 300 Met Warlord at Base 500 MAIN.C Attacked Warlord 500 Cogmind --------- Core Integrity 1234/1300 Matter 170/300 Energy 150/150 System Corruption 2% Temperature Cool (0) Movement Flying (24) Location -3/Research Parts ------- > --- POWER (2) -------- Micro Nuclear Core > --- PROPULSION (6) --- Improved VTOL Module Improved VTOL Module Improved VTOL Module Improved VTOL Module Nuclear Pulse Array > --- UTILITY (11) ----- Medium Storage Unit Enhanced Optical Array 0b10 Decoder Chip [Skirmisher] Hacking Suite Hacking Suite Hacking Suite Makeshift Hacking Suite Experimental Hacking Suite System Shield > --- WEAPON (2) ------- Advanced Plasma Cannon Lance > --- INVENTORY (10) --- Light Antimatter Reactor Micro Antimatter Reactor Improved Cesium-ion Thruster Nuclear Pulse Thruster Field Propulsion Array Advanced Cryofiber Web Large Storage Unit Advanced Weight Redist. System Guided Plasma Cannon Peak State ------------ > --- POWER ------------ Micro Nuclear Core > --- PROPULSION ------- Improved VTOL Module Improved VTOL Module Improved VTOL Module Improved VTOL Module Nuclear Pulse Array > --- UTILITY ---------- Medium Storage Unit Enhanced Optical Array 0b10 Decoder Chip [Skirmisher] Hacking Suite Hacking Suite Hacking Suite Makeshift Hacking Suite Experimental Hacking Suite System Shield > --- WEAPON ----------- Advanced Plasma Cannon Lance > --- INVENTORY -------- Light Antimatter Reactor Improved Cesium-ion Thruster Nuclear Pulse Thruster Field Propulsion Array Advanced Cryofiber Web Large Storage Unit Advanced Weight Redist. System Guided Plasma Cannon [Rating: 84] Favorites ----------- Power Light Nuclear Core Engine Light Ion Engine Power Core Light Nuclear Core Propulsion Improved VTOL Module Leg Aluminum Leg Wheel Compact Wheel Flight Unit Improved VTOL Module Utility Hacking Suite Device Sensor Array Storage Medium Storage Unit Processor Machine Analyzer Hackware Hacking Suite Protection Improved Light Armor Plating Weapon Advanced Beam Cannon Energy Gun Medium Laser Energy Cannon Advanced Beam Cannon Ballistic Gun Assault Rifle Launcher Rocket Launcher Special Weapon Mining Laser Piercing Weapon Heavy Pick Build | -11 -10 -10 -9 -9 -9 -8 -8 -8 -7 -6 -6 -6 -6 -6 -5 -5 -5 -5 -4 -4 -3 ------- Run | Scr Mat Min Mat Min Exi Min Mat Sto Fac Fac Was Fac Low Low Fac Upp Upp War Pro Fac Res Slots Evolved 14 | . . . 2 . . . 2 . 2 2 . . . . 2 . . . . 2 2 Power 1 | . . . . . . . . . . . . . . . . . . . . 1 . Propulsion 4 | . . . 1 . . . 1 . 1 . . . . . . . . . . 1 . Utility 9 | . . . 1 . . . 1 . 1 2 . . . . 2 . . . . . 2 Weapon . | . . . . . . . . . . . . . . . . . . . . . . Parts Attached 93 | 8 . 1 18 1 5 1 14 6 9 4 . . 2 . 9 1 2 1 1 7 3 Power 9 | 2 . . 1 1 . . . 2 2 . . . . . . . 1 . . . . Engine 4 | 2 . . 1 . . . . 1 . . . . . . . . . . . . . Core 5 | . . . . 1 . . . 1 2 . . . . . . . 1 . . . . Reactor . | . . . . . . . . . . . . . . . . . . . . . . Propulsion 19 | 2 . . 1 . 3 . 5 . 3 1 . . . . 1 . . . . 2 1 Treads . | . . . . . . . . . . . . . . . . . . . . . . Leg 4 | . . . . . 3 . 1 . . . . . . . . . . . . . . Wheel 3 | 2 . . 1 . . . . . . . . . . . . . . . . . . Hover . | . . . . . . . . . . . . . . . . . . . . . . Flight 12 | . . . . . . . 4 . 3 1 . . . . 1 . . . . 2 1 Utility 26 | 1 . . 5 . 1 1 6 . 2 2 . . 2 . 2 1 . 1 1 . 1 Device 3 | . . . 1 . . . . . . . . . 1 . . . . 1 . . . Storage 6 | 1 . . 1 . 1 . 3 . . . . . . . . . . . . . . Processor 6 | . . . 1 . . . 2 . . . . . 1 . 1 . . . 1 . . Hackware 6 | . . . . . . . 1 . 2 1 . . . . . 1 . . . . 1 Protection 5 | . . . 2 . . 1 . . . 1 . . . . 1 . . . . . . Artifact . | . . . . . . . . . . . . . . . . . . . . . . Weapon 39 | 3 . 1 11 . 1 . 3 4 2 1 . . . . 6 . 1 . . 5 1 Energy Gun 6 | 2 . . 4 . . . . . . . . . . . . . . . . . . Energy Cannon 16 | . . . 2 . 1 . 2 3 1 . . . . . 3 . . . . 3 1 Ballistic Gun 3 | 1 . . 2 . . . . . . . . . . . . . . . . . . Ballistic Cannon . | . . . . . . . . . . . . . . . . . . . . . . Launcher 6 | . . 1 3 . . . . 1 1 . . . . . . . . . . . . Special Weapon 1 | . . . . . . . 1 . . . . . . . . . . . . . . Impact Weapon . | . . . . . . . . . . . . . . . . . . . . . . Slashing Weapon . | . . . . . . . . . . . . . . . . . . . . . . Piercing Weapon 7 | . . . . . . . . . . 1 . . . . 3 . 1 . . 2 . Special Melee Weapon . | . . . . . . . . . . . . . . . . . . . . . . Unidentified Prototypes 7 | . . . 1 . . . 1 2 1 . . . . . . . . 1 . . 1 Parts Lost 3 | . . . 1 . . . . . 1 . . . . . . . 1 . . . . Power 2 | . . . 1 . . . . . . . . . . . . . 1 . . . . Propulsion . | . . . . . . . . . . . . . . . . . . . . . . Utility . | . . . . . . . . . . . . . . . . . . . . . . Weapon 1 | . . . . . . . . . 1 . . . . . . . . . . . . Highest Loss Streak 1 | . . . 1 . . . . . 1 . . . . . . . 1 . . . . To Critical Strikes . | . . . . . . . . . . . . . . . . . . . . . . Average Slot Usage (%) 90 | . 85 85 86 100 100 100 85 84 89 83 93 93 93 93 93 94 94 91 94 83 74 Engine 3 | . 14 14 10 8 . . . . . . . . . . . . . . . . . Core 5 | . . . . 2 11 11 9 9 7 6 6 6 6 6 5 5 5 5 5 5 4 Leg 4 | . . . . . 8 33 16 . . . . . . . . . . . . . . Wheel 9 | . 28 28 24 33 24 . . . . . . . . . . . . . . . . Flight 16 | . . . . . . . 19 36 38 31 33 33 33 33 28 29 29 29 29 25 22 Device 2 | . . . . 11 11 8 . . . . . . 2 . . . . . . . . Storage 8 | . 14 14 11 11 11 11 9 9 7 6 6 6 6 6 5 5 5 5 5 5 4 Processor 11 | . . . 8 11 11 11 12 18 10 6 6 6 9 13 17 12 11 11 17 15 9 Hackware 12 | . . . . . . . 2 9 18 26 26 26 26 26 23 27 29 29 29 26 25 Protection 2 | . . . 8 . . 2 4 . . 3 6 6 . . 5 5 5 2 . . . Energy Gun 2 | . 28 21 5 . . . . . . . . . . . . . . . . . . Energy Cannon 8 | . . . 14 22 22 22 11 3 6 . . . . . . . . . . 1 . Piercing Weapon 1 | . . . . . . . . . . . 6 6 6 6 4 5 5 5 5 3 4 Naked Turns . | . . . . . . . . . . . . . . . . . . . . . . Heaviest Build 46 | 13 13 16 24 24 40 46 46 19 25 21 21 21 21 18 21 21 22 22 19 25 28 Greatest Support 42 | 26 26 26 42 42 42 30 40 20 25 25 25 25 25 25 25 25 25 25 25 33 33 Greatest Overweight (x) 1 | . . . . . 1 1 1 . . . . . . . . . . . . . . Average Overweight (x) . | . . . . . . 1 . . . . . . . . . . . . . . . Largest Inventory Capacity 15 | 8 8 8 10 10 15 15 15 10 10 10 10 10 10 10 10 10 10 10 10 10 10 Average Capacity 10 | 7 8 8 9 10 11 15 10 10 10 10 10 10 10 10 10 10 10 10 10 10 10 Most Carried 14 | 6 6 7 10 10 10 8 14 10 10 7 8 8 10 10 10 10 10 10 10 10 10 Average Carried 8 | 3 6 6 7 9 9 7 8 9 8 6 7 8 9 10 9 10 9 10 9 9 9 Final Capacity 15 | 8 8 8 10 10 15 15 10 10 10 10 10 10 10 10 10 10 10 10 10 10 10 Final Carried 10 | 6 6 7 9 9 8 7 10 9 7 7 8 8 10 10 10 10 10 10 9 10 10 Class Distribution -------------------- 36% | Mutant 23% | Hacker-Sprinter 20% | Hacker-Scout 10% | Scavenger-Mutant 6% | Sprinter Dominant Class ---------------- Mutant | -10/Materials Mutant | -10/Mines Mutant | -9/Materials Mutant | -9/Mines Mutant | -9/Exiles Scavenger-Mutant | -8/Mines Sprinter | -8/Materials Sprinter | -8/Storage Hacker-Sprinter | -7/Factory Hacker-Sprinter | -6/Factory Hacker-Sprinter | -6/Waste Hacker-Sprinter | -6/Factory Hacker-Sprinter | -6/Lower Caves Hacker-Sprinter | -6/Lower Caves Hacker-Scout | -5/Factory Hacker-Sprinter | -5/Upper Caves Hacker-Sprinter | -5/Upper Caves Hacker-Sprinter | -5/Warlord Hacker-Sprinter | -4/Proximity Caves Hacker-Scout | -4/Factory Wizard-Sprinter | -3/Research Resources | -11 -10 -10 -9 -9 -9 -8 -8 -8 -7 -6 -6 -6 -6 -6 -5 -5 -5 -5 -4 -4 -3 ----------- Run | Scr Mat Min Mat Min Exi Min Mat Sto Fac Fac Was Fac Low Low Fac Upp Upp War Pro Fac Res Matter Collected 1164 | 240 . 41 298 10 . 47 123 40 . 46 . 111 58 34 96 10 10 . . . . Remotely . | . . . . . . . . . . . . . . . . . . . . . . Salvage Created 922 | . . 40 467 . . 19 100 24 17 46 . . . . 102 . . . . 107 . Parts 80 | . . 6 51 . . 2 3 4 2 4 . . . . 3 . . . . 5 . Haulers Intercepted 4 | . . . 1 . . . 2 . . . . . . . 1 . . . . . . Recyclers Shooed . | . . . . . . . . . . . . . . . . . . . . . . Parts Field Recycled . | . . . . . . . . . . . . . . . . . . . . . . Retrieved Matter . | . . . . . . . . . . . . . . . . . . . . . . Parts Self-Destructed 4 | . . . . . . . . . . . . . . . . . 3 1 . . . Prevented 8 | . . . . . . . . . . . . . . . . . . 8 . . . Kills | -11 -10 -10 -9 -9 -9 -8 -8 -8 -7 -6 -6 -6 -6 -6 -5 -5 -5 -5 -4 -4 -3 ------- Run | Scr Mat Min Mat Min Exi Min Mat Sto Fac Fac Was Fac Low Low Fac Upp Upp War Pro Fac Res Combat Hostiles Destroyed 25 | . . 3 18 . . 1 . . 1 . . . . . . . . . . 2 . Guns 1 | . . . 1 . . . . . . . . . . . . . . . . . . Cannons 8 | . . . 5 . . 1 . . . . . . . . . . . . . 2 . AOE 16 | . . 3 12 . . . . . 1 . . . . . . . . . . . . Classes Destroyed 9 | . . 2 6 . . . . . . . . . . . . . . . . 1 . Worker 3 | . . . 1 . . . . . . 2 . . . . . . . . . . . Tunneler 1 | . . 1 . . . . . . . . . . . . . . . . . . . Hauler 4 | . . . 1 . . . 2 . . . . . . . 1 . . . . . . Operator 1 | . . . 1 . . . . . . . . . . . . . . . . . . Watcher 4 | . . . 3 . . . . 1 . . . . . . . . . . . . . Swarmer 17 | . . 3 12 . . 1 . . 1 . . . . . . . . . . . . Grunt 4 | . . . 4 . . . . . . . . . . . . . . . . . . Sentry 2 | . . . 2 . . . . . . . . . . . . . . . . . . Programmer 2 | . . . . . . . . . . . . . . . . . . . . 2 . Best Kill Streak 12 | . . 4 12 . . 1 1 1 1 2 . . . . 1 . . . . 1 . Combat Bots Only 9 | . . 3 9 . . 1 . . 1 . . . . . . . . . . 1 . Max Kills in Single Turn 4 | . . 2 4 . . 1 1 1 1 1 . . . . 1 . . . . 1 . Gunslinging . | . . . . . . . . . . . . . . . . . . . . . . Exploded 3 | . . 2 3 . . . . . 1 . . . . . . . . . . . . Melee . | . . . . . . . . . . . . . . . . . . . . . . Uniques/NPCs Destroyed . | . . . . . . . . . . . . . . . . . . . . . . Combat | -11 -10 -10 -9 -9 -9 -8 -8 -8 -7 -6 -6 -6 -6 -6 -5 -5 -5 -5 -4 -4 -3 -------- Run | Scr Mat Min Mat Min Exi Min Mat Sto Fac Fac Was Fac Low Low Fac Upp Upp War Pro Fac Res Damage Taken 1536 | . . 113 330 . . . 17 27 285 . . . 21 . 109 47 223 . 68 230 66 Core 485 | . . 20 57 . . . . 9 93 . . . 21 . 31 24 79 . 68 17 66 Absorbed by Shields 52 | . . . . . . . . . 52 . . . . . . . . . . . . Regen/Repaired (Parts) 192 | . . . . . . . . . 46 22 . . . . 22 . . . . . 102 Core Remaining (%) 91 | 100 . 92 . . . 85 . 98 86 . . . . 97 . . . . 79 98 . Volleys Fired 78 | . 1 3 26 . . 2 7 3 10 . . . . . 2 . . . . 16 8 Largest 2 | . 2 2 2 . . 1 1 1 1 . . . . . 1 . . . . 1 1 Hottest 136 | . 90 83 136 . . 120 120 120 120 . . . . . 98 . . . . 120 98 Shots Fired 100 | . 2 5 45 . . 2 7 3 10 . . . . . 2 . . . . 16 8 Gun 15 | . 2 2 11 . . . . . . . . . . . . . . . . . . Cannon 72 | . . . 28 . . 2 7 3 6 . . . . . 2 . . . . 16 8 Launcher 13 | . . 3 6 . . . . . 4 . . . . . . . . . . . . Special . | . . . . . . . . . . . . . . . . . . . . . . Kinetic 5 | . . . 5 . . . . . . . . . . . . . . . . . . Thermal 79 | . 2 2 31 . . 2 7 3 6 . . . . . 2 . . . . 16 8 Explosive 13 | . . 3 6 . . . . . 4 . . . . . . . . . . . . Electromagnetic 3 | . . . 3 . . . . . . . . . . . . . . . . . . Robot Hit Streak 13 | . 1 2 7 . . . 6 . 9 . . . . . . . . . . 13 . Robot Miss Streak 3 | . 1 2 3 . . . . . . . . . . . . . . . . . . Penetration Max . | . . . . . . . . . . . . . . . . . . . . . . Secondary Targets . | . . . . . . . . . . . . . . . . . . . . . . Shots Hit Robots 44 | . 1 2 25 . . . 4 . 3 2 . . . . 3 . . . . 4 . Core Hits 39 | . . 4 22 . . 1 2 1 4 2 . . . . 1 . . . . 2 . Critical Kills . | . . . . . . . . . . . . . . . . . . . . . . Critical Parts Destroyed . | . . . . . . . . . . . . . . . . . . . . . . Critical Strikes . | . . . . . . . . . . . . . . . . . . . . . . Melee Attacks 39 | . . . . . . . . . . 2 . . . . 19 . . . . 14 4 Impact . | . . . . . . . . . . . . . . . . . . . . . . Slashing . | . . . . . . . . . . . . . . . . . . . . . . Piercing 39 | . . . . . . . . . . 2 . . . . 19 . . . . 14 4 Sneak Attacks 3 | . . . . . . . . . . 2 . . . . 1 . . . . . . Combat Hostiles . | . . . . . . . . . . . . . . . . . . . . . . Follow-up Attacks . | . . . . . . . . . . . . . . . . . . . . . . Damage Inflicted 3016 | . 10 271 1242 . . 81 250 40 488 186 . . . . 188 . . . . 260 . Guns 96 | . 10 12 74 . . . . . . . . . . . . . . . . . . Cannons 1224 | . . . 374 . . 81 250 40 219 . . . . . . . . . . 260 . Explosions 1322 | . . 259 794 . . . . . 269 . . . . . . . . . . . . Melee 374 | . . . . . . . . . . 186 . . . . 188 . . . . . . Ramming . | . . . . . . . . . . . . . . . . . . . . . . Kinetic 23 | . . . 23 . . . . . . . . . . . . . . . . . . Thermal 1272 | . 10 12 400 . . 81 250 40 219 . . . . . . . . . . 260 . Explosive 1322 | . . 259 794 . . . . . 269 . . . . . . . . . . . . Electromagnetic 25 | . . . 25 . . . . . . . . . . . . . . . . . . Impact . | . . . . . . . . . . . . . . . . . . . . . . Slashing . | . . . . . . . . . . . . . . . . . . . . . . Piercing 374 | . . . . . . . . . . 186 . . . . 188 . . . . . . Highest Corruption 8 | . . . . . . . . . 1 . 8 8 8 5 . . . . . 1 2 Average Corruption 3 | . . . . . . . . . 1 . 8 8 5 5 . . . . . 1 2 Corruption Purged 3 | . . . . . . . . . . . . . 3 . . . . . . . . Corruption Blocked . | . . . . . . . . . . . . . . . . . . . . . . Effects 7 | . . . . . . . . . 1 . 2 1 1 1 . . . . . . 1 Message Errors 2 | . . . . . . . . . . . . . 1 . . . . . . . 1 Heat Flow Errors 2 | . . . . . . . . . 1 . 1 . . . . . . . . . . Data Loss (minor) 1 | . . . . . . . . . . . . 1 . . . . . . . . . Data Loss (major) 2 | . . . . . . . . . . . 1 . . 1 . . . . . . . Overload Shots . | . . . . . . . . . . . . . . . . . . . . . . Overflow Damage 120 | . . . 66 . . 19 . . . . . . . . . . . . . 35 . Projectiles 54 | . . . . . . 19 . . . . . . . . . . . . . 35 . Explosions 66 | . . . 66 . . . . . . . . . . . . . . . . . . Melee . | . . . . . . . . . . . . . . . . . . . . . . Knockbacks . | . . . . . . . . . . . . . . . . . . . . . . Impact . | . . . . . . . . . . . . . . . . . . . . . . Kinetic . | . . . . . . . . . . . . . . . . . . . . . . Secondary . | . . . . . . . . . . . . . . . . . . . . . . Self-Inflicted Damage 5 | . . . 5 . . . . . . . . . . . . . . . . . . Shots 1 | . . . 1 . . . . . . . . . . . . . . . . . . Rammed . | . . . . . . . . . . . . . . . . . . . . . . Targets Rammed . | . . . . . . . . . . . . . . . . . . . . . . Kicked . | . . . . . . . . . . . . . . . . . . . . . . Crushed . | . . . . . . . . . . . . . . . . . . . . . . Highest Temperature 420 | . 30 42 411 . . 117 240 80 237 7 165 2 9 . 46 8 6 . 1 420 138 Average Temperature 82 | . 17 25 114 . . 63 108 26 62 2 38 2 6 . 26 5 6 . 1 163 52 Received Heat Transfer 168 | . . 27 48 . . . 9 . 12 . . . 9 . 9 9 12 . 9 24 . Effects 2 | . . . 1 . . . . . . . . . . . . . . . . 1 . Shutdowns 1 | . . . 1 . . . . . . . . . . . . . . . . . . Short Circuit 1 | . . . . . . . . . . . . . . . . . . . . 1 . Siege Activations . | . . . . . . . . . . . . . . . . . . . . . . Robots Corrupted . | . . . . . . . . . . . . . . . . . . . . . . Combat Hostiles . | . . . . . . . . . . . . . . . . . . . . . . Parts Fried 1 | . . . 1 . . . . . . . . . . . . . . . . . . Impact Corruptions . | . . . . . . . . . . . . . . . . . . . . . . Robots Melted . | . . . . . . . . . . . . . . . . . . . . . . Combat Hostiles . | . . . . . . . . . . . . . . . . . . . . . . Parts Melted 6 | . . . 1 . . 1 1 . . . . . . . . . . . . 3 . Heat Transferred 2525 | . 25 37 703 . . 160 560 80 480 . . . . . . . . . . 480 . Parts Sabotaged . | . . . . . . . . . . . . . . . . . . . . . . Parts Stolen . | . . . . . . . . . . . . . . . . . . . . . . Parts Stripped . | . . . . . . . . . . . . . . . . . . . . . . Power Chain Reactions . | . . . . . . . . . . . . . . . . . . . . . . Missiles Intercepted . | . . . . . . . . . . . . . . . . . . . . . . Alert | -11 -10 -10 -9 -9 -9 -8 -8 -8 -7 -6 -6 -6 -6 -6 -5 -5 -5 -5 -4 -4 -3 ------- Run | Scr Mat Min Mat Min Exi Min Mat Sto Fac Fac Was Fac Low Low Fac Upp Upp War Pro Fac Res Peak Influence 650 | . 15 182 650 267 . 60 118 59 235 133 91 63 . . 126 . . . . 245 182 Initial 164 | . . 5 70 164 . . 23 . 26 109 46 63 . . 34 . . . . 28 128 Average 123 | . 6 78 441 162 . 17 65 38 85 121 81 63 . . 35 . . . . 112 152 Maximum Alert Level 2 | . . . 2 1 . . . . 1 . . . . . . . . . . 1 . Low Security (%) 88 | 100 100 100 21 94 . 100 100 100 91 100 100 100 . . 100 . . . . 88 100 Level 1 3 | . . . 5 5 . . . . 8 . . . . . . . . . . 11 . Level 2 7 | . . . 73 . . . . . . . . . . . . . . . . . . Level 3 . | . . . . . . . . . . . . . . . . . . . . . . Level 4 . | . . . . . . . . . . . . . . . . . . . . . . Level 5 . | . . . . . . . . . . . . . . . . . . . . . . High Security . | . . . . . . . . . . . . . . . . . . . . . . Max Security . | . . . . . . . . . . . . . . . . . . . . . . Squads Dispatched 15 | . 1 . 3 . . . . . 2 1 . . . . 1 . . . . 3 4 Investigation 7 | . . . . . . . . . 2 1 . . . . 1 . . . . 2 1 Extermination 1 | . . . . . . . . . . . . . . . . . . . . 1 . Reinforcement 7 | . 1 . 3 . . . . . . . . . . . . . . . . . 3 Assault . | . . . . . . . . . . . . . . . . . . . . . . Garrison . | . . . . . . . . . . . . . . . . . . . . . . Intercept . | . . . . . . . . . . . . . . . . . . . . . . Searches Triggered . | . . . . . . . . . . . . . . . . . . . . . . Construction Impeded 1 | . . . 1 . . . . . . . . . . . . . . . . . . Haulers Reinforced . | . . . . . . . . . . . . . . . . . . . . . . Active Scanning Responses . | . . . . . . . . . . . . . . . . . . . . . . Cargo Convoy Interrupts . | . . . . . . . . . . . . . . . . . . . . . . Stealth | -11 -10 -10 -9 -9 -9 -8 -8 -8 -7 -6 -6 -6 -6 -6 -5 -5 -5 -5 -4 -4 -3 --------- Run | Scr Mat Min Mat Min Exi Min Mat Sto Fac Fac Was Fac Low Low Fac Upp Upp War Pro Fac Res Distress Signals 2 | . . . 2 . . . . . . . . . . . . . . . . . . Communications Jammed . | . . . . . . . . . . . . . . . . . . . . . . Distress Signals . | . . . . . . . . . . . . . . . . . . . . . . Times Spotted 138 | . 4 3 24 4 . . 7 . 8 . 4 . 7 . 22 1 13 . 5 27 9 Peak Tracking Total 12 | . 4 3 6 3 . . 3 . 4 . 4 . 9 . 12 1 8 . 3 10 8 Tactical Retreats 20 | . . . 1 . . . . . 4 . . . 1 . 4 1 2 . 2 4 1 Traps | -11 -10 -10 -9 -9 -9 -8 -8 -8 -7 -6 -6 -6 -6 -6 -5 -5 -5 -5 -4 -4 -3 ------- Run | Scr Mat Min Mat Min Exi Min Mat Sto Fac Fac Was Fac Low Low Fac Upp Upp War Pro Fac Res Traps Triggered 9 | . . . . . . . . 1 3 1 . . . . . . . . . 1 3 Indirectly . | . . . . . . . . . . . . . . . . . . . . . . Trap Hack Attempts . | . . . . . . . . . . . . . . . . . . . . . . Triggered . | . . . . . . . . . . . . . . . . . . . . . . Disarmed . | . . . . . . . . . . . . . . . . . . . . . . Reprogrammed . | . . . . . . . . . . . . . . . . . . . . . . Reused . | . . . . . . . . . . . . . . . . . . . . . . Traps Extracted . | . . . . . . . . . . . . . . . . . . . . . . Installed . | . . . . . . . . . . . . . . . . . . . . . . Triggered 4 | . . . . . . . . . . . . . . . . . 2 2 . . . Machines | -11 -10 -10 -9 -9 -9 -8 -8 -8 -7 -6 -6 -6 -6 -6 -5 -5 -5 -5 -4 -4 -3 ---------- Run | Scr Mat Min Mat Min Exi Min Mat Sto Fac Fac Was Fac Low Low Fac Upp Upp War Pro Fac Res Machines Disabled 3 | . . . 1 1 . . . 1 . . . . . . . . . . . . . Max in Single Turn 1 | . . . 1 . . . . 1 . . . . . . . . . . . . . Garrison Access 4 | . . . . . . . 1 . . . . 1 . . 1 . . . . . 1 Machines Sabotaged . | . . . . . . . . . . . . . . . . . . . . . . Garrisons Compromised . | . . . . . . . . . . . . . . . . . . . . . . Overloaded Fab Kills . | . . . . . . . . . . . . . . . . . . . . . . Hacking | -11 -10 -10 -9 -9 -9 -8 -8 -8 -7 -6 -6 -6 -6 -6 -5 -5 -5 -5 -4 -4 -3 --------- Run | Scr Mat Min Mat Min Exi Min Mat Sto Fac Fac Was Fac Low Low Fac Upp Upp War Pro Fac Res Machines Accessed 56 | . 2 1 3 . 2 . 7 4 5 3 . 1 . . 8 1 1 7 . 7 4 Terminals 28 | . 2 1 2 . . . 6 3 3 1 . . . . 5 . . . . 3 2 Fabricators 4 | . . . . . . . . . 1 1 . . . . . . . . . 2 . Repair Stations 7 | . . . 1 . . . . 1 1 1 . . . . 1 . . . . 1 1 Recycling Units 1 | . . . . . . . . . . . . . . . . . . . . 1 . Scanalyzers 1 | . . . . . . . . . . . . . . . 1 . . . . . . Garrison Access 4 | . . . . . . . 1 . . . . 1 . . 1 . . . . . 1 Total Hacks 140 | . 4 3 6 . 2 . 16 6 18 10 . 2 . . 24 1 1 14 . 25 8 Successful 88 | . 1 1 4 . 2 . 4 4 11 5 . 1 . . 14 1 1 14 . 19 6 Failed 50 | . 3 2 2 . . . 11 2 7 5 . 1 . . 9 . . . . 6 2 Catastrophic 8 | . 1 1 . . . . 1 . 1 1 . . . . 2 . . . . 1 . Database Lockouts 2 | . . . . . . . 1 . . . . . . . 1 . . . . . . Manual 78 | . 4 3 6 . 1 . 18 . 11 4 . . . . 16 . . 1 . 10 4 Terminals 85 | . 4 3 4 . . . 15 4 11 4 . . . . 19 . . . . 16 5 Fabricators 9 | . . . . . . . . . 3 2 . . . . . . . . . 4 . Repair Stations 19 | . . . 2 . . . . 2 4 4 . . . . 2 . . . . 3 2 Recycling Units 2 | . . . . . . . . . . . . . . . . . . . . 2 . Scanalyzers 2 | . . . . . . . . . . . . . . . 2 . . . . . . Garrison Access 5 | . . . . . . . 1 . . . . 2 . . 1 . . . . . 1 Terminal Hacks 57 | . 1 1 3 . 2 . 3 3 5 1 . . . . 7 1 1 14 . 12 3 Record 17 | . . . . . 1 . . . . . . . . . 2 . . 12 . 1 1 Part Schematic 7 | . . . . . . . 1 . 2 . . . . . 1 . . . . 3 . Robot Analysis 4 | . 1 1 2 . . . . . . . . . . . . . . . . . . Open Door 7 | . . . . . . . . 3 . . . . . . . 1 1 2 . . . Open DSF 1 | . . . . . . . . . . . . . . . . . . . . 1 . Level Access Points 1 | . . . . . . . . . . . . . . . . . . . . . 1 Branch Access Points 2 | . . . . . . . 1 . . 1 . . . . . . . . . . . Emergency Access Points 1 | . . . . . . . . . . . . . . . . . . . . 1 . Terminal Index 2 | . . . . . . . . . . . . . . . 1 . . . . 1 . Fabricator Index 2 | . . . . . . . . . . . . . . . . . . . . 1 1 Alert Level 2 | . . . . . . . . . 1 . . . . . . . . . . 1 . Unreport Threat 6 | . . . 1 . . . 1 . . . . . . . 2 . . . . 2 . Locate Traps 1 | . . . . . . . . . . . . . . . . . . . . 1 . Dispatch Records 1 | . . . . . . . . . . . . . . . 1 . . . . . . Recall Investigation 2 | . . . . . . . . . 2 . . . . . . . . . . . . EX-Prototype ID Bank 1 | . . . . . 1 . . . . . . . . . . . . . . . . Fabricator Hacks 8 | . . . . . . . . . 2 2 . . . . . . . . . 4 . Load Schematic 4 | . . . . . . . . . 1 1 . . . . . . . . . 2 . Build 4 | . . . . . . . . . 1 1 . . . . . . . . . 2 . Repair Station Hacks 13 | . . . 1 . . . . 1 4 2 . . . . 2 . . . . 1 2 Scan Component 8 | . . . 1 . . . . 1 2 1 . . . . 1 . . . . 1 1 Repair 5 | . . . . . . . . . 2 1 . . . . 1 . . . . . 1 Recycling Unit Hacks 1 | . . . . . . . . . . . . . . . . . . . . 1 . Report Inventory 1 | . . . . . . . . . . . . . . . . . . . . 1 . Scanalyzer 2 | . . . . . . . . . . . . . . . 2 . . . . . . Insert Component 2 | . . . . . . . . . . . . . . . 2 . . . . . . Garrison Access Hacks 4 | . . . . . . . 1 . . . . 1 . . 1 . . . . . 1 Seal Access 4 | . . . . . . . 1 . . . . 1 . . 1 . . . . . 1 Unauthorized Hacks 3 | . . . . . . . . . . . . . . . 2 . . . . 1 . Terminals 3 | . . . . . . . . . . . . . . . 2 . . . . 1 . Track 1 | . . . . . . . . . . . . . . . 1 . . . . . . Botnet 2 | . . . . . . . . . . . . . . . 1 . . . . 1 . Fabricators . | . . . . . . . . . . . . . . . . . . . . . . Repair Stations . | . . . . . . . . . . . . . . . . . . . . . . Recycling Units . | . . . . . . . . . . . . . . . . . . . . . . Scanalyzers . | . . . . . . . . . . . . . . . . . . . . . . Garrison Access . | . . . . . . . . . . . . . . . . . . . . . . Data Cores Recovered . | . . . . . . . . . . . . . . . . . . . . . . Used . | . . . . . . . . . . . . . . . . . . . . . . Hacking Detections 36 | . 2 1 3 . . . 6 1 5 3 . 1 . . 6 . . . . 5 3 Full Trace Events 9 | . 1 1 . . . . . . 2 1 . . . . 1 . . . . 2 1 Feedback Events 1 | . . . . . . . . . 1 . . . . . . . . . . . . Corruption 1 | . . . . . . . . . 1 . . . . . . . . . . . . Feedback Blocked . | . . . . . . . . . . . . . . . . . . . . . . Robot Schematics Acquired . | . . . . . . . . . . . . . . . . . . . . . . Robots Built . | . . . . . . . . . . . . . . . . . . . . . . Authchips . | . . . . . . . . . . . . . . . . . . . . . . Time . | . . . . . . . . . . . . . . . . . . . . . . Total Robot Build Rating . | . . . . . . . . . . . . . . . . . . . . . . Part Schematics Acquired 6 | . . . . . . . 1 . 2 . . . . . 1 . . . . 2 . Parts Built 3 | . . . . . . . . . 1 . . . . . . . . . . 2 . Authchips . | . . . . . . . . . . . . . . . . . . . . . . Time 272 | . . . . . . . . . 73 47 . . . . . . . . . 152 . Total Part Build Rating 13 | . . . . . . . . . 3 . . . . . . . . . . 10 . Parts Repaired 5 | . . . . . . . . . 2 1 . . . . 1 . . . . . 1 Time 154 | . . . . . . . . . 76 30 . . . . 30 . . . . . 18 Parts Recycled . | . . . . . . . . . . . . . . . . . . . . . . Recycled Matter . | . . . . . . . . . . . . . . . . . . . . . . Retrieved Matter . | . . . . . . . . . . . . . . . . . . . . . . Retrieved Components . | . . . . . . . . . . . . . . . . . . . . . . Parts Scanalyzed . | . . . . . . . . . . . . . . . . . . . . . . Part Schematics Acquired . | . . . . . . . . . . . . . . . . . . . . . . Parts Damaged . | . . . . . . . . . . . . . . . . . . . . . . Bothacking | -11 -10 -10 -9 -9 -9 -8 -8 -8 -7 -6 -6 -6 -6 -6 -5 -5 -5 -5 -4 -4 -3 ------------ Run | Scr Mat Min Mat Min Exi Min Mat Sto Fac Fac Was Fac Low Low Fac Upp Upp War Pro Fac Res Used RIF Installer . | . . . . . . . . . . . . . . . . . . . . . . Robots Hacked . | . . . . . . . . . . . . . . . . . . . . . . Non-combat . | . . . . . . . . . . . . . . . . . . . . . . Combat . | . . . . . . . . . . . . . . . . . . . . . . Robot Hacks Applied . | . . . . . . . . . . . . . . . . . . . . . . Relay Couplers Released . | . . . . . . . . . . . . . . . . . . . . . . Fabnet Peak Effective % . | . . . . . . . . . . . . . . . . . . . . . . Robots Rewired . | . . . . . . . . . . . . . . . . . . . . . . Allies Hacked . | . . . . . . . . . . . . . . . . . . . . . . Hacks Repelled . | . . . . . . . . . . . . . . . . . . . . . . Allies | -11 -10 -10 -9 -9 -9 -8 -8 -8 -7 -6 -6 -6 -6 -6 -5 -5 -5 -5 -4 -4 -3 -------- Run | Scr Mat Min Mat Min Exi Min Mat Sto Fac Fac Was Fac Low Low Fac Upp Upp War Pro Fac Res Total Allies 4 | . . . . 4 . . . . . . . . . . . . . . . . . Largest Group 4 | . . . . 4 3 3 1 . . . . . . . . . . . . . . Highest-Rated Group 71 | . . . . 71 40 40 16 . . . . . . . . . . . . . . Highest-Rated Ally 31 | . . . . 31 16 16 16 . . . . . . . . . . . . . . Total Orders . | . . . . . . . . . . . . . . . . . . . . . . Ally Attacks 48 | . . . . 28 . 11 9 . . . . . . . . . . . . . . Total Damage 558 | . . . . 356 . 106 96 . . . . . . . . . . . . . . Kills 10 | . . . . 6 . 3 1 . . . . . . . . . . . . . . Allies Corrupted . | . . . . . . . . . . . . . . . . . . . . . . Allies Melted . | . . . . . . . . . . . . . . . . . . . . . . Intel | -11 -10 -10 -9 -9 -9 -8 -8 -8 -7 -6 -6 -6 -6 -6 -5 -5 -5 -5 -4 -4 -3 ------- Run | Scr Mat Min Mat Min Exi Min Mat Sto Fac Fac Was Fac Low Low Fac Upp Upp War Pro Fac Res Robot Analysis Total 3 | . 1 1 1 . . . . . . . . . . . . . . . . . . Derelict Logs Recovered 8 | . . . . 2 . . . . . . . . 2 . . 2 1 . 1 . . Drone Launches . | . . . . . . . . . . . . . . . . . . . . . . Drone Recoveries . | . . . . . . . . . . . . . . . . . . . . . . Decoded 0b10 Intel 19 | . . . . . . . . . . . . . . . . . . . . 13 6 Garrisons 3 | . . . . . . . . . . . . . . . . . . . . 2 1 Patrols 7 | . . . . . . . . . . . . . . . . . . . . 6 1 Investigations 3 | . . . . . . . . . . . . . . . . . . . . 3 . Reinforcements 1 | . . . . . . . . . . . . . . . . . . . . . 1 Guards 5 | . . . . . . . . . . . . . . . . . . . . 2 3 Exploration | -11 -10 -10 -9 -9 -9 -8 -8 -8 -7 -6 -6 -6 -6 -6 -5 -5 -5 -5 -4 -4 -3 ------------- Run | Scr Mat Min Mat Min Exi Min Mat Sto Fac Fac Was Fac Low Low Fac Upp Upp War Pro Fac Res Turns Passed 4763 | 57 97 240 439 601 268 375 321 79 295 171 58 17 73 32 665 70 74 140 62 369 260 Spaces Moved 8113 | 39 105 249 327 577 243 179 490 209 967 371 160 72 294 137 880 296 302 579 262 731 644 Core 2 | 2 . . . . . . . . . . . . . . . . . . . . . Treads . | . . . . . . . . . . . . . . . . . . . . . . Legs 310 | . . . . . 33 179 98 . . . . . . . . . . . . . . Wheels 1505 | 37 105 249 327 577 210 . . . . . . . . . . . . . . . . Hover . | . . . . . . . . . . . . . . . . . . . . . . Flight 6296 | . . . . . . . 392 209 967 371 160 72 294 137 880 296 302 579 262 731 644 Fastest Speed 23 | 50 90 90 90 93 93 190 26 26 23 23 23 23 23 23 23 23 23 23 23 23 24 Average Speed 41 | 87 90 90 90 93 106 190 45 26 23 23 23 23 23 23 23 23 23 23 23 23 24 Slowest Speed 190 | 90 90 90 93 93 190 190 190 26 23 23 23 23 23 23 23 23 23 23 23 24 24 Overloaded Moves . | . . . . . . . . . . . . . . . . . . . . . . Propulsion Burnouts . | . . . . . . . . . . . . . . . . . . . . . . Robots Hopped 20 | . . . . . . . . . 6 3 . . . . 3 . . . . 3 5 Cave-ins Triggered . | . . . . . . . . . . . . . . . . . . . . . . Exploration Rate (%) 41 | 3 24 66 36 90 61 37 41 37 20 9 79 2 51 36 23 53 51 93 58 27 14 Regions Visited 21 Branch Regions 11 Pre-discovered Areas 2 | . . . . 1 1 . . . . . . . . . . . . . . . . Known Exits Taken 10 | . . . 1 1 1 1 1 1 . . . 1 . . 1 . . . 1 1 . Unknown Exits Taken 9 | 1 1 1 . . . . . . 1 . . . 1 1 . 1 1 1 . . . Scrap Searched 13 | . . 1 . 1 . . . . . . . . 6 1 . 1 2 . 1 . . Spaces Dug 48 | . . . . . . . . . . . . . . . 14 . . . . 22 12 Terrain Destroyed 174 | . . 41 44 . . . . . 39 . . . . . 14 . . . . 24 12 Melee 30 | . . . . . . . . . . . . . . . 12 . . . . 14 4 Projectile 20 | . . . . . . . . . . . . . . . 2 . . . . 10 8 AOE 124 | . . 41 44 . . . . . 39 . . . . . . . . . . . . Terrain Rammed . | . . . . . . . . . . . . . . . . . . . . . . Walls Destroyed . | . . . . . . . . . . . . . . . . . . . . . . Machines Disabled . | . . . . . . . . . . . . . . . . . . . . . . Actions | -11 -10 -10 -9 -9 -9 -8 -8 -8 -7 -6 -6 -6 -6 -6 -5 -5 -5 -5 -4 -4 -3 --------- Run | Scr Mat Min Mat Min Exi Min Mat Sto Fac Fac Was Fac Low Low Fac Upp Upp War Pro Fac Res Total 9276 | 57 105 259 421 642 252 212 580 232 1022 448 180 71 298 136 1297 297 305 585 262 886 729 Wait 863 | 6 . 6 30 58 . 30 48 5 24 73 20 . . . 381 . . 4 . 117 61 Move 8054 | 38 104 248 326 576 242 178 489 208 955 365 159 71 293 136 873 295 301 578 261 724 634 Hop 19 | . . . . . . . . . 5 3 . . . . 3 . . . . 3 5 Pick Up 54 | 5 . 1 9 3 2 . 10 3 7 1 1 . 2 . 5 . 1 . . 3 1 Fast Attach 31 | 6 . . 8 1 . . 3 . 1 3 . . 1 . 2 1 1 1 . 1 2 Attach 18 | . . . 2 . . . 2 4 3 1 . . 1 . 1 . 1 . 1 1 1 Detach 8 | . . . 1 . . . 2 3 1 . . . 1 . . . . . . . . Swap 44 | 2 . 1 8 . 5 1 9 2 5 . . . . . 6 . . . . 5 . Drop 49 | . . . 11 4 3 1 10 4 4 . . . . . 5 1 1 2 . 2 1 Fire 78 | . 1 3 26 . . 2 7 3 10 . . . . . 2 . . . . 16 8 Melee 39 | . . . . . . . . . . 2 . . . . 19 . . . . 14 4 Ram . | . . . . . . . . . . . . . . . . . . . . . . Kick . | . . . . . . . . . . . . . . . . . . . . . . Crush . | . . . . . . . . . . . . . . . . . . . . . . Escape Stasis 19 | . . . . . . . . . 7 . . . . . . . . . . . 12 Rewire . | . . . . . . . . . . . . . . . . . . . . . . Trap . | . . . . . . . . . . . . . . . . . . . . . . Miscellaneous . | . . . . . . . . . . . . . . . . . . . . . . Route ------- -11/Scrapyard -10/Materials -10/Mines -9/Materials (discovered 2 exits: *Mat / *Min) -9/Mines (discovered 2 exits: *Mat / *Exi) -9/Exiles -8/Mines -8/Materials (discovered 3 exits: *Fac / *Sto x2) -8/Storage (discovered 2 exits: *Fac / Rec) -7/Factory -6/Factory (discovered 2 exits: Low x2) -6/Waste -6/Factory -6/Lower Caves -6/Lower Caves -5/Factory (discovered 3 exits: *Fac x2 / *Upp) -5/Upper Caves -5/Upper Caves (discovered 2 exits: *Fac / *War) -5/Warlord -4/Proximity Caves -4/Factory (discovered 3 exits: *Res x2 / Arm) -3/Research (discovered 4 exits: *Res x3 / [*Qua]) History --------- Turn | Location | Event 29 | -11/Scrapyard | Discovered new exit (range 16) 58 | -11/Scrapyard | Entered Materials 83 | -10/Materials | Discovered new exit (range 11) 155 | -10/Materials | Entered Mines 162 | -10/Mines | Received a Rocket Launcher from a helpful Derelict 185 | -10/Mines | Met a Derelict bent on vengeance 305 | -10/Mines | Build established: Mutant 367 | -10/Mines | Discovered new exit (range 10) 395 | -10/Mines | Entered Materials 395 | -9/Materials | Evolved 2 slots: Propulsion x1, Utility x1 524 | -9/Materials | Destroyed 9 combat bots 736 | -9/Materials | Discovered new exit (range 6) 740 | -9/Materials | Identified exit to Materials 824 | -9/Materials | Discovered new exit (range 12) 833 | -9/Materials | Identified exit to Mines 834 | -9/Materials | Entered Mines 1031 | -9/Mines | Assisted by bots powering up and referring to "LRC-V3" 1052 | -9/Mines | Received a Mining Laser from a helpful Derelict 1219 | -9/Mines | Learned location of Storage (-8) 1231 | -9/Mines | Discovered exit to Materials (range 7) 1426 | -9/Mines | Deemed a non-threat by the Exiles lab entrance 1426 | -9/Mines | Discovered new exit (range 5) 1429 | -9/Mines | Identified exit to Exiles 1435 | -9/Mines | Entered Exiles 1435 | -9/Exiles | Accompanied by 3 allies 1458 | -9/Exiles | Met 8R-AWN 1474 | -9/Exiles | Met EX-HEX 1504 | -9/Exiles | Met EX-BIN 1517 | -9/Exiles | Aligned with FarCom system 1518 | -9/Exiles | Given EX-Vault access code 1540 | -9/Exiles | Opened EX-Vault 1548 | -9/Exiles | Found Gui. Plasma Cannon 1572 | -9/Exiles | Warned to stay clear of 0b10 Research branches 1600 | -9/Exiles | Met EX-DEC 1605 | -9/Exiles | Learned location of Zion (-6) 1687 | -9/Exiles | Discovered new exit (range 10) 1701 | -9/Exiles | Identified exit to Mines 1703 | -9/Exiles | Left Exiles lab with Gui. Plasma Cannon 1703 | -9/Exiles | Entered Mines 1703 | -8/Mines | Accompanied by 3 allies 1927 | -8/Mines | Build established: Scavenger-Mutant 2040 | -8/Mines | Discovered exit to Materials (range 15) 2078 | -8/Mines | Entered Materials 2078 | -8/Materials | Accompanied by 1 ally 2078 | -8/Materials | Evolved 2 slots: Propulsion x1, Utility x1 2240 | -8/Materials | Identified exit to Storage 2313 | -8/Materials | Discovered new exit (range 9) 2326 | -8/Materials | Central database locked down 2329 | -8/Materials | Identified exit to Factory 2399 | -8/Materials | Entered Storage 2400 | -8/Storage | Identified exit to Recycling 2466 | -8/Storage | Discovered exit to Factory (range 9) 2468 | -8/Storage | Found Prototype Launcher 2470 | -8/Storage | Identified Gui. Missile Launcher 2478 | -8/Storage | Entered Factory 2478 | -7/Factory | Evolved 2 slots: Propulsion x1, Utility x1 2500 | -7/Factory | Build established: Sprinter 2581 | -7/Factory | Repaired Lgt. Nuclear Core? 2587 | -7/Factory | Fabricated Hacking Suite? 2647 | -7/Factory | Repaired Cesium-ion Thruster? 2681 | -7/Factory | Discovered new exit (range 6) 2773 | -7/Factory | Entered another Factory area 2773 | -6/Factory | Evolved 2 slots: Utility x2 2831 | -6/Factory | Repaired Imp. VTOL Module 2833 | -6/Factory | Identified exit to Lower Caves 2855 | -6/Factory | Build established: Hacker-Sprinter 2944 | -6/Factory | Sucked down chute 2944 | -6/Factory | Entered Waste 2947 | -6/Waste | Spotted C-40 Crusher 2947 | -6/Waste | Spotted C-40 Crusher 2950 | -6/Waste | Spotted C-40 Crusher 2959 | -6/Waste | EMP discharged 2968 | -6/Waste | Spotted C-40 Crusher 2968 | -6/Waste | Spotted C-40 Crusher 2971 | -6/Waste | Spotted C-40 Crusher 3000 | -6/Waste | Discovered new exit (range 11) 3002 | -6/Waste | Entered Factory 3015 | -6/Factory | Discovered exit to Lower Caves (range 8) 3019 | -6/Factory | Entered Lower Caves 3052 | -6/Lower Caves | Learned location of 1 exit from Factory 3084 | -6/Lower Caves | Discovered new exit (range 9) 3087 | -6/Lower Caves | Learned location of 1 exit from Factory 3092 | -6/Lower Caves | Entered another Lower Caves area 3122 | -6/Lower Caves | Discovered new exit (range 8) 3124 | -6/Lower Caves | Entered Factory 3124 | -5/Factory | Evolved 2 slots: Utility x2 3125 | -5/Factory | Identified exit to Factory 3125 | -5/Factory | Identified exit to Upper Caves 3237 | -5/Factory | Repaired Imp. VTOL Module 3548 | -5/Factory | Build established: Hacker-Scout 3743 | -5/Factory | Central database locked down 3743 | -5/Factory | Discovered exit to Factory (range 6) 3789 | -5/Factory | Entered Upper Caves 3853 | -5/Upper Caves | Discovered new exit (range 17) 3859 | -5/Upper Caves | Entered another Upper Caves area 3860 | -5/Upper Caves | Discovered exit to Factory (range 13) 3884 | -5/Upper Caves | Spotted B-75 Beast 3924 | -5/Upper Caves | Discovered new exit (range 18) 3925 | -5/Upper Caves | Learned location of 1 exit from Factory 3933 | -5/Upper Caves | Entered Warlord 3987 | -5/Warlord | Visited the Vortex Lab 3995 | -5/Warlord | Warlord's base attacked by MAIN.C 4007 | -5/Warlord | Found Prototype Device 4007 | -5/Warlord | Identified Minesniffer Drone Bay 4023 | -5/Warlord | Met Warlord 4034 | -5/Warlord | Learned Armory emergency access door positions 4034 | -5/Warlord | Learned Testing emergency access door positions 4034 | -5/Warlord | Learned 4 Armory zone layouts 4034 | -5/Warlord | Learned 4 Testing zone layouts 4034 | -5/Warlord | Learned Armory fabricator intel 4034 | -5/Warlord | Learned Armory scanalyzer intel 4034 | -5/Warlord | Learned Research recycling unit intel 4067 | -5/Warlord | Build established: Hacker-Sprinter 4067 | -5/Warlord | Opened side exit 4071 | -5/Warlord | Discovered new exit (range 9) 4073 | -5/Warlord | Entered Proximity Caves 4127 | -4/Proximity Caves | Discovered exit to Factory (range 20) 4135 | -4/Proximity Caves | Entered Factory 4135 | -4/Factory | Evolved 2 slots: Power x1, Propulsion x1 4136 | -4/Factory | Identified exit to Armory 4137 | -4/Factory | Identified exit to Research 4206 | -4/Factory | Identified exit to DSF 4285 | -4/Factory | Discovered exit to Research (range 22) 4426 | -4/Factory | Build established: Hacker-Scout 4470 | -4/Factory | Fabricated Biomechanical Wings? 4474 | -4/Factory | Fabricated Biomechanical Wings? 4504 | -4/Factory | Entered Research 4504 | -3/Research | Evolved 2 slots: Utility x2 4505 | -3/Research | Loaded intel: 4 recycling unit locations 4517 | -3/Research | Spotted B-86 Titan 4524 | -3/Research | Discovered new exit (range 21) 4562 | -3/Research | Repaired Nuclear Pulse Array 4635 | -3/Research | Found Prototype Hackware 4635 | -3/Research | Identified Exp. Hacking Suite 4684 | -3/Research | Identified exit to Research 4764 | -3/Research | Self-destructed Last Messages --------------- volatile warp engine that requires an intelligent controller capable of dynamically recombining with different connections as they fluctuate between various states of matter and energy. One of the early controller device prototypes, [LRC-V3], disappeared shortly after it was built, but had already been excluded as a candidate for further testing and improvement. 04684_ ALERT: Suspicious activity at Terminal R004. Dispatching Investigation squad. 04685_ >> DECODED: Security location. 04706_ Knocked back. 04711_ >> DECODED: Patrol location. 04715_ ALERT: Suspicious intruders detected, dispatching Cutter reinforcements to area. 04739_ >> DECODED: Reinforcement location. 04740_ OKMLWXJXTRTKKH8LXIKDMVRUF,R QHS 04743_ Acquired Mic. Antimatter Reactor. 04750_ U-05 Engineer builds a Wall. 04757_ ALERT: Suspicious intruders detected, dispatching Cutter reinforcements to area. 04758_ ALERT: All DSF locations entering lockdown mode. Map ----- +----------------------------------------------------+ | #???????????????# #????????????????????????? | | #???????????????# #????????????????????????? | | ^ #???????????????# #????????????????????????? | | #???????????????# #????????????????????????? | | #???????????????# #????????????????????????? | | #???????????????# #????????????????????????? | | #???????????????# #????????????????????????? | | #???????????????# #????????????????????????? | | ################# ##############???????????? | | ???????? | | g ???????? | | g gg g ???????? | | ????????? | | ######+######g#############+#############????????? | | ?# ]# g #????????????????????????????? | | ?# # #????????????????????????????? | | ?# """" # "" #????????????????????????????? | | ?# """" # "" #????????????????????????????? | | ?# """" # T" #????????????????????????????? | | ?# """" # "" #????????????????????????????? | | ?# # "" #????????????????????????????? | | ?# + #????????????????????????????? | | #"########## #????????????????????????????? | | ##???????#######"####???###########??????????????? | | ?????##### ##??###??????# #??????????????? | | ###### "###############@ %#??????????????? | | < cH% c c/ #??????????????? | | ###### ####### c # #??????????????? | | ?????#"##??????# c ###########??????????????? | | ?????## ##?????# ########?????????????????? | | ??????## ##????# #?????????????????? | | ???????# "###### c #?????????????????? | | ???????### # #?????????????????? | | ????????## # #?????????????????? | | ?????????# # +?????????????????? | | ?????????# #u #?????????????????? | | ?????????# [[ # ###+##### #?????????????????? | | ?????????# [[ + + #? #?????????????????? | | ?????????# # # #?? #?????????????????? | | ?????????####### # #???#?????????????????? | | ????????????? + #?????????????????????? | | ????????????####+#### +?????????????????????? | | ????????????????????# #?????????????????????? | | ????????????????????########?????????????????????? | | ?????????????????????????????????????????????????? | | ?????????????????????????????????????????????????? | | ?????????????????????????????????????????????????? | | ?????????????????????????????????????????????????? | | ?????????????????????????????????????????????????? | | ?????????????????????????????????????????????????? | +----------------------------------------------------+ Best States ------------- Heat Dissipation 46 Energy Generation 15 Energy Capacity 250 Matter Stores 300 Matter Capacity 300 Sight Range 22 Robot Scan Range 14 Terrain Scan Density 10 Armor Coverage 225 Evasion (%) 65 Melee Accuracy 6 Offensive Hacking 57 Defensive Hacking 10 Item Schematics ----------------- Hacking Suite | -8/Materials | Hacked Imp. Hacking Suite | -7/Factory | Hacked Lgt. Nuclear Core | -7/Factory | Hacked Adv. Hacking Suite | -5/Factory | Hacked Biomechanical Wings | -4/Factory | Hacked Mic. Fission Core | -4/Factory | Hacked Robot Schematics ------------------ None Fabricated ------------ Hacking Suite | x1 | -7/Factory Biomechanical Wings | x1 | -4/Factory Biomechanical Wings | x1 | -4/Factory Alien Tech Used ----------------- None Achievements -------------- Can't Catch Me Challenges ------------ None Game ------ Seed CargoMeleeChip Manual? 0 Play Time 02:30:28 Cumulative 30.9 hours Start 2022.04.26 @ 13:47:48 End 2022.04.26 @ 17:32:07 Sessions 3 Manual Loads 0 Difficulty Rogue Special Mode None Game No. 14 Rogue 14 Adventurer 0 Explorer 0 Win Type - Total 0 Types 0/0/0/0/0/0/0/0/0 Lore% 32 Gallery% 28 Achievement% 27 Wizard Run 0 Options --------- ASCII 0 Keyboard 0 Movement Mouse Keybinds 0 Fullscreen 2 Font 18/TerminusBold Map View 76x50 Tactical HUD 1 Map Filters NONE Filters NONE Steam 1 RUN: c79760ba-9373-406e-b9c9-63a3a28cb3ab